bitfinex-derivatives/quotes_BTCF0:USTF0_20250325
["timestamp","ask_amount","ask_price","bid_price","bid_amount"]
[1742928828326,0.79459531,87697.0,87696.0,0.2129]
[1742928828522,0.79459531,87697.0,87696.0,0.2149]
[1742928828922,0.79459531,87697.0,87695.0,0.23419751]
[1742928828923,0.1140166,87696.0,87695.0,0.23419751]
[1742928829117,0.11513661,87696.0,87695.0,0.23531751]
[1742928829418,0.11513661,87696.0,87682.0,0.41861108]
[1742928829419,0.1140335,87683.0,87682.0,0.40730493]
[1742928829623,0.5884335,87683.0,87682.0,0.40798493]
[1742928830218,0.7910335,87683.0,87682.0,0.40798493]
[1742928830522,0.7910335,87683.0,87682.0,0.00068]
[1742928830725,0.1140361,87681.0,87680.0,0.2128]
[1742928830919,0.11559611,87681.0,87680.0,0.21348]
[1742928831923,0.11459611,87681.0,87680.0,0.21348]
[1742928832226,0.11459611,87681.0,87680.0,0.21448]
[1742928833323,0.11459611,87681.0,87680.0,0.21548]
[1742928834725,0.00156001,87681.0,87680.0,0.3295174]
[1742928835231,0.11559611,87681.0,87680.0,0.3295174]
[1742928835527,0.11559611,87681.0,87680.0,0.5695174]
[1742928836027,0.00156001,87681.0,87680.0,0.5695174]
[1742928836213,0.13509772,87697.0,87696.0,0.1140166]
[1742928836418,0.1038,87716.0,87703.0,0.1140075]
[1742928836614,0.00112,87704.0,87703.0,0.3746075]
[1742928837119,0.56394481,87717.0,87706.0,0.1140036]
[1742928837320,0.06074651,87707.0,87706.0,0.3846836]
[1742928837521,0.05998651,87707.0,87706.0,0.3846836]
[1742928838030,0.56394481,87717.0,87706.0,0.3846836]
[1742928838031,0.3608,87717.0,87706.0,0.27068]
[1742928838221,0.0569986,87711.0,87707.0,0.2083]
[1742928838421,0.0576786,87711.0,87707.0,0.4483]
[1742928838621,0.0576786,87711.0,87710.0,0.1139984]
[1742928838818,0.0576786,87711.0,87710.0,0.36602825]
[1742928839013,0.00068,87711.0,87710.0,0.25202985]
[1742928839231,0.1146771,87711.0,87710.0,0.25202985]
[1742928840029,0.1146771,87711.0,87710.0,0.46032985]
[1742928840226,0.00068,87711.0,87710.0,0.57432825]
[1742928840431,0.00268,87711.0,87710.0,0.57432825]
[1742928841234,0.003,87711.0,87710.0,0.57432825]
[1742928841415,0.003,87711.0,87710.0,0.72432825]
[1742928841923,0.003,87711.0,87710.0,2.22432825]
[1742928842821,0.001,87711.0,87710.0,2.22432825]
[1742928843022,0.001,87711.0,87710.0,0.57832825]
[1742928843631,0.00057107,87720.0,87719.0,0.1139867]
[1742928843822,0.00133107,87720.0,87719.0,0.1145867]
[1742928844017,0.11531647,87720.0,87719.0,0.0006]
[1742928844422,0.00133107,87720.0,87719.0,0.3111867]
[1742928845023,0.11531647,87720.0,87719.0,0.1972]
[1742928845325,0.11731647,87720.0,87719.0,0.1972]
[1742928845927,0.11931647,87720.0,87719.0,0.20571523]
[1742928848222,0.00533107,87720.0,87719.0,0.31970193]
[1742928848422,0.00533107,87720.0,87719.0,0.68050193]
[1742928848716,0.11855647,87720.0,87719.0,0.20571523]
[1742928848919,0.11923647,87720.0,87719.0,0.20571523]
[1742928853122,0.21833647,87720.0,87719.0,0.20571523]
[1742928853524,0.31643647,87720.0,87719.0,0.20571523]
[1742928855934,0.0569978,87713.0,87706.0,0.83661984]
[1742928856134,0.4748023,87707.0,87706.0,0.83721984]
[1742928856336,0.47568231,87707.0,87706.0,0.0006]
[1742928856627,0.20828001,87707.0,87706.0,0.1146036]
[1742928856833,0.20828001,87707.0,87706.0,0.0006]
[1742928857029,0.32228231,87707.0,87706.0,0.0006]
[1742928857232,0.32228231,87707.0,87706.0,0.2066]
[1742928857533,0.00088001,87707.0,87706.0,0.52896936]
[1742928857729,0.0569972,87713.0,87709.0,0.1139988]
[1742928857931,0.1579981,87712.0,87710.0,0.205]
[1742928858131,0.1579981,87712.0,87710.0,0.20568]
[1742928858132,0.26535811,87712.0,87710.0,0.20568]
[1742928858434,0.1139971,87711.0,87710.0,0.20568]
[1742928858638,0.11487711,87711.0,87710.0,0.20568]
[1742928858831,0.32227711,87711.0,87710.0,0.20568]
[1742928859834,0.32427711,87711.0,87710.0,0.20568]
[1742928860031,0.00288001,87711.0,87710.0,0.5496784]
[1742928860331,0.002,87711.0,87710.0,0.5496784]
[1742928860931,0.002,87711.0,87710.0,0.6617584]
[1742928861230,0.1065,87711.0,87710.0,0.6617584]
[1742928861826,0.1045,87711.0,87710.0,0.6617584]
[1742928862029,0.001,87711.0,87710.0,0.6617584]
[1742928862431,0.001,87711.0,87710.0,0.8117584]
[1742928863029,0.001,87711.0,87710.0,2.3117584]
[1742928863634,0.00057107,87720.0,87719.0,0.1139867]
[1742928863830,0.00153108,87720.0,87719.0,0.7257467]
[1742928864131,0.00057107,87720.0,87719.0,0.7257467]
[1742928864336,0.00057107,87720.0,87719.0,0.9324467]
[1742928864947,0.00257107,87720.0,87719.0,0.9324467]
[1742928865322,0.00457107,87720.0,87719.0,0.9324467]
[1742928865526,0.00457107,87720.0,87719.0,1.0321467]
[1742928876937,0.00457107,87720.0,87719.0,0.9324467]
[1742928877745,0.00549107,87720.0,87719.0,0.9324467]
[1742928878242,0.00549107,87720.0,87719.0,0.8274467]
[1742928878746,0.00553108,87720.0,87719.0,0.8274467]
[1742928878945,0.00457107,87720.0,87719.0,0.9285467]
[1742928880548,0.11855647,87720.0,87719.0,0.00096]
[1742928880736,0.113988,87718.0,87717.0,8e-05]
[1742928880936,0.11486801,87718.0,87717.0,8e-05]
[1742928881132,0.00088001,87718.0,87717.0,8e-05]
[1742928881342,0.21018001,87718.0,87717.0,8e-05]
[1742928881539,0.21018001,87718.0,87717.0,0.0006]
[1742928881933,0.21118001,87718.0,87717.0,0.00068]
[1742928882139,0.32516801,87718.0,87717.0,0.00068]
[1742928882452,0.32716801,87718.0,87717.0,0.00068]
[1742928885355,0.00388001,87718.0,87717.0,0.64888039]
[1742928885543,0.01450966,87768.0,87717.0,0.64888039]
[1742928885544,0.0004,87768.0,87717.0,1.08055968]
[1742928885737,0.0004,87768.0,87747.0,0.0569748]
[1742928886052,0.20374482,87756.0,87755.0,0.4747399]
[1742928886345,0.20314481,87756.0,87755.0,0.72688843]
[1742928886546,0.0004,87768.0,87767.0,0.1139243]
[1742928886750,0.00124,87768.0,87767.0,0.7255643]
[1742928886948,0.34095353,87774.0,87773.0,0.1139165]
[1742928887255,0.34159353,87774.0,87773.0,0.5069565]
[1742928887554,0.34159353,87774.0,87773.0,2.0069565]
[1742928887743,0.34159353,87774.0,87773.0,2.2070565]
[1742928888954,0.34459353,87774.0,87773.0,2.21555875]
[1742928889454,0.34759353,87774.0,87773.0,2.21555875]
[1742928889958,0.00664,87774.0,87773.0,0.71555875]
[1742928890157,0.006,87774.0,87773.0,0.71555875]
[1742928890543,0.1056,87774.0,87773.0,0.71555875]
[1742928898268,0.006,87774.0,87773.0,0.71555875]
[1742928902459,0.006,87774.0,87773.0,2.21555875]
[1742928902659,0.006,87774.0,87773.0,2.21547875]
[1742928904564,0.1069,87774.0,87773.0,2.21547875]
[1742928906166,0.006,87774.0,87773.0,2.21547875]
[1742928908064,0.2101,87774.0,87773.0,2.21547875]
[1742928908463,0.2101,87774.0,87773.0,0.71547875]
[1742928909990,0.2101,87774.0,87773.0,0.40341875]
[1742928910369,0.2111,87774.0,87773.0,0.40341875]
[1742928911672,0.2111,87774.0,87773.0,0.60271875]
[1742928911867,0.2101,87774.0,87773.0,0.60271875]
[1742928915276,0.3240152,87774.0,87773.0,0.001]
[1742928915573,0.2111,87774.0,87773.0,0.001]
[1742928915779,0.33264976,87774.0,87773.0,0.001]
[1742928919785,0.21873456,87774.0,87773.0,0.001]
[1742928920083,0.21873456,87774.0,87773.0,0.39656889]
[1742928920282,0.11963456,87774.0,87773.0,0.64345772]
[1742928920475,0.01363456,87774.0,87773.0,0.64345772]
[1742928920678,0.006,87774.0,87773.0,2.14345772]
[1742928921487,0.2167,87774.0,87773.0,2.14345772]
[1742928923483,0.2167,87774.0,87773.0,0.52954122]
[1742928924684,0.2167,87774.0,87773.0,0.86943096]
[1742928926189,0.2167,87774.0,87773.0,0.98334746]
[1742928926485,0.2167,87774.0,87773.0,0.86943096]
[1742928926699,0.2167,87774.0,87773.0,0.98334746]
[1742928926997,0.2167,87774.0,87773.0,0.86943096]
[1742928927300,0.2167,87774.0,87773.0,0.98334746]
[1742928928096,0.2167,87774.0,87773.0,0.64345772]
[1742928928500,0.006,87774.0,87773.0,0.64345772]
[1742928932798,0.00017098,87776.0,87775.0,0.1139139]
[1742928932990,0.00017098,87776.0,87775.0,0.39120273]
[1742928933299,0.00017098,87776.0,87775.0,2.08500273]
[1742928933992,0.00417098,87776.0,87775.0,2.08500273]
[1742928934192,0.003,87776.0,87775.0,2.08500273]
[1742928934387,0.003,87776.0,87775.0,2.18500273]
[1742928935188,0.003,87776.0,87775.0,2.08500273]
[1742928935600,0.003,87776.0,87775.0,2.44056192]
[1742928936795,0.00279301,87776.0,87775.0,2.44056192]
[1742928938090,0.00279301,87776.0,87775.0,2.54056192]
[1742928938488,0.00279301,87776.0,87775.0,2.44056192]
[1742928942102,0.00279301,87776.0,87775.0,2.54056192]
[1742928943505,0.00279301,87776.0,87775.0,2.44056192]
[1742928948406,0.00279301,87776.0,87775.0,0.94056192]
[1742928948613,0.00279301,87776.0,87775.0,1.05244192]
[1742928948910,0.00279301,87776.0,87775.0,2.55244192]
[1742928953113,1e-08,87776.0,87775.0,2.55244192]
[1742928953306,1e-08,87776.0,87775.0,2.65244192]
[1742928953518,0.00057098,87784.0,87783.0,0.1139036]
[1742928953821,0.1057,87798.0,87797.0,0.1138854]
[1742928954009,0.10674001,87798.0,87797.0,1.6946454]
[1742928954209,0.1057,87798.0,87797.0,3.34703423]
[1742928955518,0.1107,87798.0,87797.0,3.34703423]
[1742928956715,0.2155,87798.0,87797.0,3.34703423]
[1742928957116,0.2155,87798.0,87797.0,3.70783423]
[1742928957516,0.1098,87798.0,87797.0,3.70783423]
[1742928957713,0.3111,87798.0,87797.0,3.70783423]
[1742928959510,0.3111,87798.0,87797.0,4.04843906]
[1742928961416,0.3111,87798.0,87797.0,3.93655906]
[1742928961620,0.3111,87798.0,87797.0,4.04839906]
[1742928961812,0.3111,87798.0,87797.0,4.00211023]
[1742928963322,0.3111,87798.0,87797.0,2.28417023]
[1742928963723,0.3111,87798.0,87797.0,2.30344471]
[1742928965619,0.3111,87798.0,87797.0,2.02344471]
[1742928967636,0.3111,87798.0,87797.0,1.6635654]
[1742928969035,0.3111,87798.0,87797.0,0.8365654]
[1742928969229,0.3121,87798.0,87797.0,0.8365654]
[1742928970420,0.3121,87798.0,87797.0,0.00108]
[1742928971433,0.3121,87798.0,87797.0,0.3149654]
[1742928971734,0.3121,87798.0,87797.0,1.0006054]
[1742928971735,0.1108,87798.0,87797.0,1.0006054]
[1742928971927,0.1098,87798.0,87797.0,1.04688917]
[1742928972120,0.11084001,87798.0,87797.0,2.54688917]
[1742928972322,0.1098,87798.0,87797.0,2.54688917]
[1742928973531,0.1098,87798.0,87797.0,2.5006054]
[1742928974323,0.1058,87798.0,87797.0,2.5006054]
[1742928974637,0.001,87798.0,87797.0,2.5006054]
[1742928975130,0.1004,87800.0,87799.0,0.1138828]
[1742928975322,0.1004,87800.0,87799.0,0.40116435]
[1742928975523,0.06054554,87800.0,87799.0,0.60816435]
[1742928975929,0.06054554,87800.0,87799.0,2.10816435]
[1742928975930,0.02069108,87800.0,87799.0,2.10816435]
[1742928977123,0.02069108,87800.0,87799.0,2.20986435]
[1742928977935,0.02269108,87800.0,87799.0,0.70986435]
[1742928978325,0.02269108,87800.0,87799.0,0.71186435]
[1742928978526,0.02069108,87800.0,87799.0,2.21386435]
[1742928979031,0.02069108,87800.0,87799.0,2.21186435]
[1742928979232,0.02069108,87800.0,87799.0,2.21386435]
[1742928980330,0.02069108,87800.0,87799.0,0.71386435]
[1742928981035,0.02069108,87800.0,87799.0,1.07302576]
[1742928985643,0.02069108,87800.0,87799.0,2.57302576]
[1742928994245,0.00017052,87806.0,87805.0,0.113875]
[1742928994440,0.00017052,87806.0,87805.0,0.77203655]
[1742928994645,0.00022948,87816.0,87815.0,0.113862]
[1742928994841,0.00022948,87816.0,87815.0,1.664262]
[1742928995046,0.00022948,87816.0,87815.0,3.52134355]
[1742928995747,0.00022948,87816.0,87815.0,3.52985938]
[1742928996044,0.00222948,87816.0,87815.0,3.52985938]
[1742928996936,0.00222948,87816.0,87815.0,3.31605938]
[1742928997132,0.00222948,87816.0,87815.0,3.43912636]
[1742928997438,0.20602948,87816.0,87815.0,3.43912636]
[1742928997838,0.00222948,87816.0,87815.0,3.43912636]
[1742928998039,0.00222948,87816.0,87815.0,3.32732636]
[1742928998242,0.00222948,87816.0,87815.0,3.39284481]
[1742928998548,0.00122948,87816.0,87815.0,3.39284481]
[1742928999551,0.00122948,87816.0,87815.0,3.75364481]
[1742929000247,0.3122,87835.0,87829.0,0.1138439]
[1742929000553,0.21131052,87835.0,87834.0,0.1138374]
[1742929000746,0.21191053,87835.0,87834.0,0.75216926]
[1742929000947,0.1068,87835.0,87834.0,0.75216926]
[1742929001139,0.1068,87835.0,87834.0,2.25216926]
[1742929001343,0.1068,87835.0,87834.0,2.45406926]
[1742929001949,0.1068,87835.0,87834.0,2.56586926]
[1742929002449,4e-08,87848.0,87847.0,0.1138206]
[1742929002648,4e-08,87848.0,87847.0,1.0186806]
[1742929002842,8e-05,87850.0,87849.0,0.113818]
[1742929003043,0.19461824,87864.0,87854.0,0.1138115]
[1742929003353,8e-05,87857.0,87854.0,0.3455315]
[1742929003546,0.1072,87861.0,87854.0,0.3455315]
[1742929003848,0.1072,87856.0,87854.0,0.46867027]
[1742929005647,0.34303833,87855.0,87854.0,0.46867027]
[1742929006351,0.2084,87855.0,87854.0,0.35687027]
[1742929008859,0.2084,87855.0,87854.0,0.23172]
[1742929009054,0.2084,87855.0,87854.0,0.3455315]
[1742929013753,0.2084,87855.0,87854.0,0.23172]
[1742929013962,0.2084,87855.0,87854.0,0.00172]
[1742929014159,0.2084,87855.0,87854.0,0.1155315]
[1742929014754,0.1065,87855.0,87854.0,0.4969315]
[1742929014963,0.1065,87855.0,87854.0,0.6010315]
[1742929015661,0.1065,87855.0,87854.0,0.38312]
[1742929016465,0.1065,87855.0,87854.0,0.4969315]
[1742929019464,0.1065,87855.0,87854.0,0.3955315]
[1742929019869,0.1065,87855.0,87854.0,0.28172]
[1742929020265,0.2203102,87855.0,87854.0,0.00172]
[1742929020569,0.1065,87855.0,87854.0,0.00172]
[1742929021268,0.2092,87855.0,87854.0,0.1155315]
[1742929021454,0.2092,87855.0,87854.0,0.00172]
[1742929024572,0.2092,87855.0,87854.0,0.1155315]
[1742929024763,0.2092,87855.0,87854.0,0.00172]
[1742929024963,0.2092,87855.0,87854.0,0.1155315]
[1742929025772,0.2092,87855.0,87854.0,0.2196315]
[1742929026459,0.2092,87855.0,87854.0,0.3264315]
[1742929028675,0.2092,87855.0,87854.0,0.10582]
[1742929028872,0.2092,87855.0,87854.0,0.1155315]
[1742929029460,0.2092,87855.0,87854.0,0.2220315]
[1742929030366,0.2092,87855.0,87854.0,0.3275315]
[1742929031975,0.2092,87855.0,87854.0,0.4366315]
[1742929032684,0.2092,87855.0,87854.0,0.32282]
[1742929033278,0.2092,87855.0,87854.0,0.4366315]
[1742929036280,0.1027,87855.0,87854.0,0.4366315]
[1742929036482,0.1027,87855.0,87854.0,0.32282]
[1742929036887,0.2165102,87855.0,87854.0,0.32282]
[1742929038075,0.1027,87855.0,87854.0,0.32282]
[1742929038475,0.2039,87855.0,87854.0,0.32282]
[1742929039575,0.3177102,87855.0,87854.0,0.00172]
[1742929039782,0.6785102,87855.0,87854.0,0.00172]
[1742929041287,0.6785102,87855.0,87854.0,0.20422]
[1742929042289,0.6785102,87855.0,87854.0,0.3180315]
[1742929042290,0.57522,87855.0,87854.0,0.3180315]
[1742929042478,0.4635,87855.0,87854.0,0.30852]
[1742929042676,8e-05,87856.0,87855.0,0.1138102]
[1742929042886,0.1009,87859.0,87855.0,0.1156102]
[1742929043091,0.1009,87859.0,87855.0,0.3245102]
[1742929043277,8e-05,87858.0,87856.0,0.1138089]
[1742929043477,8e-05,87858.0,87856.0,0.00172]
[1742929043674,8e-05,87858.0,87857.0,0.2089]
[1742929043893,8e-05,87858.0,87857.0,0.21062]
[1742929044386,0.1138863,87858.0,87857.0,0.21062]
[1742929044590,0.2147063,87858.0,87857.0,0.21062]
[1742929046388,0.3219063,87858.0,87857.0,0.00172]
[1742929046591,0.1138089,87856.0,87855.0,0.20455716]
[1742929046783,0.1138089,87856.0,87855.0,0.20627716]
[1742929047089,0.4267089,87856.0,87855.0,0.20627716]
[1742929047478,0.4341822,87856.0,87855.0,0.20627716]
[1742929047880,0.4341822,87856.0,87855.0,0.00172]
[1742929049597,0.5841822,87856.0,87855.0,0.00172]
[1742929049790,0.1138167,87850.0,87849.0,0.1006]
[1742929050095,0.22673671,87850.0,87849.0,0.10188]
[1742929050296,0.42453671,87850.0,87849.0,0.10188]
[1742929050792,0.43201001,87850.0,87849.0,0.10188]
[1742929052288,0.43201001,87850.0,87849.0,0.00128]
[1742929052487,0.1138206,87847.0,87846.0,0.00017078]
[1742929052688,0.11502061,87847.0,87846.0,0.00141078]
[1742929052994,0.41452061,87847.0,87846.0,0.00141078]
[1742929053182,0.42199391,87847.0,87846.0,0.00141078]
[1742929054292,0.42199391,87847.0,87846.0,0.10511078]
[1742929056391,0.22379391,87847.0,87846.0,0.10511078]
[1742929056596,0.22379391,87847.0,87846.0,0.20901078]
[1742929057898,0.32249391,87847.0,87846.0,0.20901078]
[1742929058698,0.42889391,87847.0,87846.0,0.20901078]
[1742929060291,0.42889391,87847.0,87846.0,0.10511078]
[1742929062700,0.42889391,87847.0,87846.0,0.00141078]
[1742929064487,0.32249391,87847.0,87846.0,0.00141078]
[1742929065789,0.0569133,87843.0,87839.0,0.00045538]
[1742929065995,0.1707424,87841.0,87840.0,0.1067]
[1742929066298,0.6441024,87841.0,87840.0,0.10762]
[1742929066499,0.8664757,87841.0,87840.0,0.10762]
[1742929067617,0.1790557,87841.0,87840.0,0.10762]
[1742929068306,0.00025045,87849.0,87848.0,0.1138193]
[1742929068491,0.00025045,87849.0,87848.0,0.7346193]
[1742929068492,0.00129046,87849.0,87848.0,0.7346193]
[1742929068695,0.00017045,87849.0,87848.0,0.72312]
[1742929069101,0.11398845,87849.0,87848.0,0.72312]
[1742929069301,0.11506846,87849.0,87848.0,0.72312]
[1742929071905,0.11398845,87849.0,87848.0,0.72312]
[1742929072107,0.11506846,87849.0,87848.0,0.82322]
[1742929074203,0.11506846,87849.0,87848.0,0.56322]
[1742929075899,0.21486846,87849.0,87848.0,0.56322]
[1742929076101,0.31646846,87849.0,87848.0,0.56322]
[1742929076301,0.11506846,87849.0,87848.0,0.56322]
[1742929076607,0.11398845,87849.0,87848.0,0.56322]
[1742929076809,0.11506846,87849.0,87848.0,0.56322]
[1742929078705,0.32246846,87849.0,87848.0,0.56322]
[1742929079707,0.00125046,87849.0,87848.0,0.56322]
[1742929079914,0.11398845,87849.0,87848.0,0.56322]
[1742929080113,0.11398845,87849.0,87848.0,0.84322]
[1742929080700,0.32138845,87849.0,87848.0,0.56322]
[1742929081010,0.32246846,87849.0,87848.0,0.56322]
[1742929081218,0.32246846,87849.0,87848.0,0.20242]
[1742929083715,0.0569119,87845.0,87841.0,0.27188461]
[1742929083904,0.113827,87842.0,87841.0,0.27268461]
[1742929084111,0.11442701,87842.0,87841.0,0.27188461]
[1742929084414,0.31282701,87842.0,87841.0,0.27264461]
[1742929085518,0.31282701,87842.0,87841.0,0.00076]
[1742929088916,0.56685795,87842.0,87841.0,0.00076]
[1742929089623,0.7027521,87842.0,87841.0,0.00076]
[1742929089821,0.1138296,87840.0,87839.0,0.00045538]
[1742929090022,0.58690961,87840.0,87839.0,0.00045538]
[1742929090221,0.78730961,87840.0,87839.0,0.00045538]
[1742929090524,1.04134055,87840.0,87839.0,8e-08]
[1742929091422,0.72926055,87840.0,87839.0,8e-08]
[1742929091626,0.25463095,87840.0,87839.0,0.11383098]
[1742929091922,0.36846055,87840.0,87839.0,0.00076008]
[1742929092113,0.36846055,87840.0,87839.0,0.20786008]
[1742929092821,0.36846055,87840.0,87839.0,0.21901853]
[1742929093019,0.36846055,87840.0,87839.0,0.21825853]
[1742929094931,0.11442961,87840.0,87839.0,0.21825853]
[1742929097927,0.11442961,87840.0,87839.0,0.20710008]
[1742929098125,0.31682961,87840.0,87839.0,0.20710008]
[1742929099225,0.42042961,87840.0,87839.0,0.20710008]
[1742929100115,0.42042961,87840.0,87839.0,0.20786008]
[1742929100321,0.42042961,87840.0,87839.0,0.20710008]
[1742929104026,0.31682961,87840.0,87839.0,0.20710008]
[1742929105231,0.22032961,87840.0,87839.0,0.20710008]
[1742929106833,0.31582961,87840.0,87839.0,0.20710008]
[1742929107937,0.22032961,87840.0,87839.0,0.20710008]
[1742929108539,0.31582961,87840.0,87839.0,0.20710008]
[1742929110526,0.22032961,87840.0,87839.0,0.20710008]
[1742929111033,0.11442961,87840.0,87839.0,0.20710008]
[1742929111338,0.22610961,87840.0,87839.0,0.20710008]
[1742929111933,0.11442961,87840.0,87839.0,0.20710008]
[1742929112135,0.25408103,87858.0,87839.0,0.47954008]
[1742929112331,0.14346459,87853.0,87852.0,0.4746141]
[1742929112654,5.009e-05,87858.0,87857.0,0.1138076]
[1742929112931,5.009e-05,87858.0,87857.0,0.7557276]
[1742929112932,0.00013009,87858.0,87857.0,0.7557276]
[1742929113132,5.009e-05,87858.0,87857.0,0.7557276]
[1742929113341,5.009e-05,87858.0,87857.0,0.76734208]
[1742929113529,5.009e-05,87858.0,87857.0,0.87064208]
[1742929115126,0.00105009,87858.0,87857.0,0.87064208]
[1742929115730,0.00105009,87858.0,87857.0,0.97494208]
[1742929115930,0.00105009,87858.0,87857.0,1.24682669]
[1742929117934,0.00105009,87858.0,87857.0,1.35846669]
[1742929119439,0.00105009,87858.0,87857.0,0.99766669]
[1742929119636,0.00105009,87858.0,87857.0,1.71926669]
[1742929120042,0.00105009,87858.0,87857.0,1.44738208]
[1742929120249,0.00105009,87858.0,87857.0,1.59738208]
[1742929122849,0.001,87858.0,87857.0,1.44738208]
[1742929123648,0.001,87858.0,87857.0,2.94738208]
[1742929124234,0.001,87858.0,87857.0,1.44738208]
[1742929124648,0.001,87858.0,87857.0,1.33574208]
[1742929124848,0.001,87858.0,87857.0,1.44738208]
[1742929125343,0.001,87858.0,87857.0,0.83763448]
[1742929125344,0.11485639,87858.0,87857.0,0.83763448]
[1742929125652,0.00105009,87858.0,87857.0,0.95144208]
[1742929125842,0.0021701,87858.0,87857.0,0.95144208]
[1742929126351,0.00105009,87858.0,87857.0,0.83763448]
[1742929126743,0.0021701,87858.0,87857.0,0.83763448]
[1742929127144,0.0021701,87858.0,87857.0,0.93283448]
[1742929127558,0.0021701,87858.0,87857.0,0.92122]
[1742929128753,0.0021701,87858.0,87857.0,1.0350276]
[1742929129752,0.0021701,87858.0,87857.0,0.92122]
[1742929131955,0.0021701,87858.0,87857.0,1.0350276]
[1742929132154,0.00105009,87858.0,87857.0,1.0350276]
[1742929132455,0.0022501,87858.0,87857.0,1.0350276]
[1742929134455,0.0022501,87858.0,87857.0,0.6742276]
[1742929135167,0.0022501,87858.0,87857.0,0.56042]
[1742929137950,0.1160564,87858.0,87857.0,0.36192]
[1742929138147,0.0022501,87858.0,87857.0,0.36192]
[1742929138550,0.00989692,87858.0,87857.0,0.36192]
[1742929138758,0.20429692,87858.0,87857.0,0.36192]
[1742929139556,0.20429692,87858.0,87857.0,0.56432]
[1742929140661,0.31810322,87858.0,87857.0,0.56432]
[1742929141863,0.20429692,87858.0,87857.0,0.56432]
[1742929142667,0.31810322,87858.0,87857.0,0.36192]
[1742929142854,0.20429692,87858.0,87857.0,0.36192]
[1742929143358,0.31810322,87858.0,87857.0,0.36192]
[1742929144563,0.41960322,87858.0,87857.0,0.36192]
[1742929149068,0.30579692,87858.0,87857.0,0.36192]
[1742929149256,0.41960322,87858.0,87857.0,0.36192]
[1742929151365,0.4119564,87858.0,87857.0,0.36192]
[1742929151566,0.41961133,87858.0,87857.0,0.36192]
[1742929152464,0.30580503,87858.0,87857.0,0.36192]
[1742929153567,0.41961133,87858.0,87857.0,0.36192]
[1742929159870,0.5211241,87858.0,87857.0,0.36192]
[1742929160766,0.5211241,87858.0,87857.0,0.56692]
[1742929160975,0.5211241,87858.0,87857.0,0.36192]
[1742929163365,0.41961133,87858.0,87857.0,0.36192]
[1742929163565,0.41961133,87858.0,87857.0,0.46192]
[1742929163760,0.42843255,87858.0,87857.0,0.46192]
[1742929165076,0.43971719,87858.0,87857.0,0.46192]
[1742929166864,0.42845528,87858.0,87857.0,0.46192]
[1742929168977,0.13255528,87858.0,87857.0,0.46192]
[1742929169173,0.01874898,87858.0,87857.0,0.6257276]
[1742929169381,0.01874898,87858.0,87857.0,0.75827173]
[1742929169883,0.01874898,87858.0,87857.0,0.85527173]
[1742929170582,0.01109405,87858.0,87857.0,0.85527173]
[1742929170888,0.00989404,87858.0,87857.0,0.85527173]
[1742929172082,0.00989404,87858.0,87857.0,1.21065176]
[1742929172387,0.00989404,87858.0,87857.0,1.32445936]
[1742929172780,0.00989404,87858.0,87857.0,2.82445936]
[1742929172986,0.00989404,87858.0,87857.0,1.32445936]
[1742929173183,0.00989404,87858.0,87857.0,1.21065176]
[1742929173388,0.00989404,87858.0,87857.0,1.16430003]
[1742929173783,0.01776304,87858.0,87857.0,1.16430003]
[1742929174895,0.01776304,87858.0,87857.0,1.27810763]
[1742929175084,0.01802129,87858.0,87857.0,1.27810763]
[1742929175474,0.01802129,87858.0,87857.0,1.63890763]
[1742929176079,0.01802129,87858.0,87857.0,1.2835276]
[1742929176791,0.01802129,87858.0,87857.0,1.16972]
[1742929177187,0.01802129,87858.0,87857.0,1.2835276]
[1742929178184,0.01940055,87858.0,87857.0,1.2835276]
[1742929178790,0.02074215,87858.0,87857.0,1.2835276]
[1742929179188,0.02072456,87858.0,87857.0,1.16972]
[1742929179689,0.13453086,87858.0,87857.0,0.91972]
[1742929179891,0.02188377,87858.0,87857.0,0.91972]
[1742929180092,0.22518377,87858.0,87857.0,0.91972]
[1742929180888,0.23788745,87858.0,87857.0,0.91972]
[1742929181099,0.23788745,87858.0,87857.0,0.55892]
[1742929181581,0.22518377,87858.0,87857.0,0.55892]
[1742929183693,0.23789867,87858.0,87857.0,0.55892]
[1742929184792,0.22518377,87858.0,87857.0,0.55892]
[1742929187497,0.23669326,87858.0,87857.0,0.55892]
[1742929187712,0.35049956,87858.0,87857.0,0.36192]
[1742929188201,0.33899007,87858.0,87857.0,0.36192]
[1742929189298,0.35026335,87858.0,87857.0,0.36192]
[1742929190795,0.36292405,87858.0,87857.0,0.36192]
[1742929191201,0.35384023,87858.0,87857.0,0.36192]
[1742929191401,0.36299259,87858.0,87857.0,0.36192]
[1742929192192,0.35171931,87858.0,87857.0,0.36192]
[1742929193198,0.36301644,87858.0,87857.0,0.36192]
[1742929196698,0.36301644,87858.0,87857.0,0.00112]
[1742929196901,0.113818,87849.0,87848.0,0.27256015]
[1742929197100,0.23529036,87849.0,87848.0,0.27336015]
[1742929197401,0.52878079,87849.0,87848.0,0.27336015]
[1742929197602,0.53150165,87849.0,87848.0,0.27336015]
[1742929198106,0.53937065,87849.0,87848.0,0.27536015]
[1742929198905,0.53937065,87849.0,87848.0,0.27436015]
[1742929200002,0.53937065,87849.0,87848.0,0.27336015]
[1742929200301,0.79340159,87849.0,87848.0,0.27336015]
[1742929200506,0.68188159,87849.0,87848.0,0.27336015]
[1742929200696,0.21503265,87849.0,87848.0,0.27336015]
[1742929200890,0.01973265,87849.0,87848.0,0.27336015]
[1742929201099,0.01973265,87849.0,87848.0,0.3012]
[1742929201402,0.13435065,87849.0,87848.0,0.31277238]
[1742929202598,0.02053265,87849.0,87848.0,0.31277238]
[1742929202799,0.13435065,87849.0,87848.0,0.31277238]
[1742929203300,0.02053265,87849.0,87848.0,0.54277238]
[1742929203603,0.12520786,87849.0,87848.0,0.54277238]
[1742929204706,0.11733886,87849.0,87848.0,0.54277238]
[1742929205403,0.00352086,87849.0,87848.0,0.54277238]
[1742929205606,0.00272086,87849.0,87848.0,0.54277238]
[1742929205911,0.12419244,87849.0,87848.0,0.90357238]
[1742929206101,0.12419244,87849.0,87848.0,0.90407238]
[1742929206298,0.12499244,87849.0,87848.0,0.90407238]
[1742929208308,0.01117444,87849.0,87848.0,0.90407238]
[1742929208507,0.01037444,87849.0,87848.0,0.90407238]
[1742929215301,0.01037444,87849.0,87848.0,1.01789168]
[1742929216310,0.00272086,87849.0,87848.0,1.01789168]
[1742929216510,0.00272086,87849.0,87848.0,1.29045183]
[1742929218322,0.01026612,87849.0,87848.0,1.29045183]
[1742929218929,5.009e-05,87858.0,87857.0,0.1138076]
[1742929219221,0.00085009,87858.0,87857.0,0.89330241]
[1742929219420,0.00085009,87858.0,87857.0,2.39330241]
[1742929219621,0.00085009,87858.0,87857.0,2.68700241]